{"text_format":"1","workbook":"xlsx","n_sheets":4,"sheets":["Доходы","Расходы","Источники","ExportParams"],"not_rendered":{"charts":0,"images":1,"macros":1,"external_links":0,"defined_names":40,"comments":0,"pivot_tables":0},"unopened":[],"bounds":{"document_bytes":16777216,"sheet_cells":100000,"rows_first":2000,"rows_last":500,"rows_between":2000,"halvings":0,"cell_chars":16384,"cell_head_chars":4096},"cells_cut":0,"cells_raw":0,"read":"whole","date_system":"1900"}

{"sheet":"Доходы","index":0,"n_rows":98,"n_cols":8,"rows_kept":98,"cut":false,"hidden":false,"merged":[[10,0,16,0],[10,1,16,1],[10,2,16,2],[10,3,16,3],[10,4,16,4],[10,5,16,5],[0,0,0,3],[1,0,1,3],[3,0,3,3],[5,1,5,3],[6,1,6,3],[9,0,9,3]]}
[null,null,null,null,null,null,null,""]
["ОТЧЕТ ОБ ИСПОЛНЕНИИ БЮДЖЕТА",null,null,null,null,"КОДЫ"]
[null,null,null,null,"  Форма по ОКУД","0503117",null,"C:\\117Y01.txt"]
["на 01.05.2017 г.",null,null,null,"                   Дата","01.05.2017",null,"01.05.2017"]
[null,null,null,null,"             по ОКПО","04184114",null,"117"]
["Наименование финансового органа:","Администрация  муниципального образования  Староладожское сельское поселение Волховского муниципального района Ленинградской области",null,null,"    Глава по БК","821",null,"5"]
["Наименование публично-правового образования:","Староладожское сельское поселение",null,null,"по ОКТМО","41609462"]
["Периодичность: годовая",null,null,null,null,""]
["Единица измерения: руб.",null,null,null,"             по ОКЕИ","383",null,"1"]
["                                 1. Доходы бюджета"]
[" Наименование показателя","Код строки","Код дохода по бюджетной классификации","Утвержденные бюджетные назначения","Исполнено","Неисполненные назначения"]
[]
[]
[]
[]
[]
[]
[1,2,3,"4","5","6"]
["Доходы бюджета - всего","010","X",25146643,9789790.6799999997,{"$f":"IF(OR(D19=\"-\",IF(E19=\"-\",0,E19)>=IF(D19=\"-\",0,D19)),\"-\",IF(D19=\"-\",0,D19)-IF(E19=\"-\",0,E19))","v":15356852.32}]
["в том числе:"]
["НАЛОГОВЫЕ И НЕНАЛОГОВЫЕ ДОХОДЫ","010","000 10000000000000000",12825400,4349576.68,{"$f":"IF(OR(D21=\"-\",IF(E21=\"-\",0,E21)>=IF(D21=\"-\",0,D21)),\"-\",IF(D21=\"-\",0,D21)-IF(E21=\"-\",0,E21))","v":8475823.3200000003}]
["НАЛОГИ НА ПРИБЫЛЬ, ДОХОДЫ","010","000 10100000000000000",2329300,707015.39,1622284.6099999999]
["Налог на доходы физических лиц","010","000 10102000010000110",2329300,707015.39,1622284.6099999999]
["Налог на доходы физических лиц с доходов, источником которых является налоговый агент, за исключением доходов, в отношении которых исчисление и уплата налога осуществляются в соответствии со статьями 227, 2271 и 228 Налогового кодекса Российской Федерации","010","000 10102010010000110",2329300,693985.47,1635314.53]
["Налог на доходы физических лиц с доходов, источником которых является налоговый агент, за исключением доходов, в отношении которых исчисление и уплата налога осуществляются в соответствии со статьями 227, 227.1 и 228 Налогового кодекса Российской Федерации (сумма платежа (перерасчеты, недоимка и задолженность по соответствующему платежу, в том числе по отмененному))","010","000 10102010011000110",2329300,693170.74,1636129.26]
["Налог на доходы физических лиц с доходов, источником которых является налоговый агент, за исключением доходов, в отношении которых исчисление и уплата налога осуществляются в соответствии со статьями 227, 227.1 и 228 Налогового кодекса Российской Федерации (пени по соответствующему платежу)","010","000 10102010012100110","-",606.73,"-"]
["Налог на доходы физических лиц с доходов, источником которых является налоговый агент, за исключением доходов, в отношении которых исчисление и уплата налога осуществляются в соответствии со статьями 227, 227.1 и 228 Налогового кодекса Российской Федерации (суммы денежных взысканий (штрафов) по соответствующему платежу согласно законодательству Российской Федерации)","010","000 10102010013000110","-",208,"-"]
["Налог на доходы физических лиц с доходов, полученных от осуществления деятельности физическими лицами, зарегистрированными в качестве индивидуальных предпринимателей, нотариусов, занимающихся частной практикой, адвокатов, учредивших адвокатские кабинеты, и других лиц, занимающихся частной практикой в соответствии со статьей 227 Налогового кодекса Российской Федерации","010","000 10102020010000110","-",7972.92,"-"]
["Налог на доходы физических лиц с доходов, полученных от осуществления деятельности физическими лицами, зарегистрированными в качестве индивидуальных предпринимателей, нотариусов, занимающихся частной практикой, адвокатов, учредивших адвокатские кабинеты, и других лиц, занимающихся частной практикой в соответствии со статьей 227 Налогового кодекса Российской Федерации (сумма платежа (перерасчеты, недоимка и задолженность по соответствующему платежу, в том числе по отмененному))","010","000 10102020011000110","-",7972.92,"-"]
["Налог на доходы физических лиц с доходов, полученных физическими лицами в соответствии со статьей 228 Налогового кодекса Российской Федерации","010","000 10102030010000110","-",5057,"-"]
["Налог на доходы физических лиц с доходов, полученных физическими лицами в соответствии со статьей 228 Налогового кодекса Российской Федерации (сумма платежа (перерасчеты, недоимка и задолженность по соответствующему платежу, в том числе по отмененному))","010","000 10102030011000110","-",5057,"-"]
["НАЛОГИ НА ТОВАРЫ (РАБОТЫ, УСЛУГИ), РЕАЛИЗУЕМЫЕ НА ТЕРРИТОРИИ РОССИЙСКОЙ ФЕДЕРАЦИИ","010","000 10300000000000000",807700,233576.61,574123.39]
["Акцизы по подакцизным товарам (продукции), производимым на территории Российской Федерации","010","000 10302000010000110",807700,233576.61,574123.39]
["Доходы от уплаты акцизов на дизельное топливо, подлежащие распределению между бюджетами субъектов Российской Федерации и местными бюджетами с учетом установленных дифференцированных нормативов отчислений в местные бюджеты","010","000 10302230010000110",321700,90041.52,231658.47999999998]
["Доходы от уплаты акцизов на моторные масла для дизельных и (или) карбюраторных (инжекторных) двигателей, подлежащие распределению между бюджетами субъектов Российской Федерации и местными бюджетами с учетом установленных дифференцированных нормативов отчислений в местные бюджеты","010","000 10302240010000110",6000,944.3,5055.7]
["Доходы от уплаты акцизов на автомобильный бензин, подлежащие распределению между бюджетами субъектов Российской Федерации и местными бюджетами с учетом установленных дифференцированных нормативов отчислений в местные бюджеты","010","000 10302250010000110",480000,159753.23000000001,320246.77]
["Доходы от уплаты акцизов на прямогонный бензин, подлежащие распределению между бюджетами субъектов Российской Федерации и местными бюджетами с учетом установленных дифференцированных нормативов отчислений в местные бюджеты","010","000 10302260010000110","-",-17162.439999999999,"-"]
["НАЛОГИ НА СОВОКУПНЫЙ ДОХОД","010","000 10500000000000000",14000,"-",14000]
["Единый сельскохозяйственный налог","010","000 10503000010000110",14000,"-",14000]
["Единый сельскохозяйственный налог","010","000 10503010010000110",14000,"-",14000]
["Единый сельскохозяйственный налог (сумма платежа (перерасчеты, недоимка и задолженность по соответствующему платежу, в том числе по отмененному))","010","000 10503010011000110",14000,"-",14000]
["НАЛОГИ НА ИМУЩЕСТВО","010","000 10600000000000000",3092900,673368.38,2419531.62]
["Налог на имущество физических лиц","010","000 10601000000000110",92900,8673.57,84226.43]
["Налог на имущество физических лиц, взимаемый по ставкам, применяемым к объектам налогообложения, расположенным в границах сельских поселений","010","000 10601030100000110",92900,8673.57,84226.43]
["Налог на имущество физических лиц, взимаемый по ставкам, применяемым к объектам налогообложения, расположенным в границах сельских поселений (сумма платежа (перерасчеты, недоимка и задолженность по соответствующему платежу, в том числе по отмененному))","010","000 10601030101000110",92900,7982.52,84917.48]
["Налог на имущество физических лиц, взимаемый по ставкам, применяемым к объектам налогообложения, расположенным в границах сельских поселений (пени по соответствующему платежу)","010","000 10601030102100110","-",691.05,"-"]
["Земельный налог","010","000 10606000000000110",3000000,664694.81000000006,2335305.19]
["Земельный налог с организаций","010","000 10606030000000110",1700000,577680,1122320]
["Земельный налог с организаций, обладающих земельным участком, расположенным в границах сельских поселений","010","000 10606033100000110",1700000,577680,1122320]
["Земельный налог с физических лиц","010","000 10606040000000110",1300000,87014.81,1212985.19]
["Земельный налог с физических лиц, обладающих земельным участком, расположенным в границах сельских поселений","010","000 10606043100000110",1300000,87014.81,1212985.19]
["ГОСУДАРСТВЕННАЯ ПОШЛИНА","010","000 10800000000000000",10000,1195,8805]
["Государственная пошлина за совершение нотариальных действий (за исключением действий, совершаемых консульскими учреждениями Российской Федерации)","010","000 10804000010000110",10000,1195,{"$f":"IF(OR(D53=\"-\",IF(E53=\"-\",0,E53)>=IF(D53=\"-\",0,D53)),\"-\",IF(D53=\"-\",0,D53)-IF(E53=\"-\",0,E53))","v":8805}]
["Государственная пошлина за совершение нотариальных действий должностными лицами органов местного самоуправления, уполномоченными в соответствии с законодательными актами Российской Федерации на совершение нотариальных действий","010","000 10804020010000110",10000,1195,8805]
["Государственная пошлина за совершение нотариальных действий должностными лицами органов местного самоуправления, уполномоченными в соответствии с законодательными актами Российской Федерации на совершение нотариальных действий (сумма платежа (перерасчеты, недоимка и задолженность по соответствующему платежу, в том числе по отмененному)","010","000 10804020011000110",10000,1195,8805]
["ДОХОДЫ ОТ ИСПОЛЬЗОВАНИЯ ИМУЩЕСТВА, НАХОДЯЩЕГОСЯ В ГОСУДАРСТВЕННОЙ И МУНИЦИПАЛЬНОЙ СОБСТВЕННОСТИ","010","000 11100000000000000",1240000,275973.3,964026.7]
["Доходы, получаемые в виде арендной либо иной платы за передачу в возмездное пользование государственного и муниципального имущества (за исключением имущества бюджетных и автономных учреждений, а также имущества государственных и муниципальных унитарных предприятий, в том числе казенных)","010","000 11105000000000120",700000,110389.57,589610.42999999993]
["Доходы от сдачи в аренду имущества, находящегося в оперативном управлении органов государственной власти, органов местного самоуправления, государственных внебюджетных фондов и созданных ими учреждений (за исключением имущества бюджетных и автономных учреждений)","010","000 11105030000000120",700000,110389.57,589610.42999999993]
["Доходы от сдачи в аренду имущества, находящегося в оперативном управлении органов управления сельских поселений и созданных ими учреждений (за исключением имущества муниципальных бюджетных и автономных учреждений)","010","000 11105035100000120",700000,110389.57,589610.42999999993]
["Прочие доходы от использования имущества и прав, находящихся в государственной и муниципальной собственности (за исключением имущества бюджетных и автономных учреждений, а также имущества государственных и муниципальных унитарных предприятий, в том числе казенных)","010","000 11109000000000120",540000,165583.73000000001,374416.27]
["Прочие поступления от использования имущества, находящегося в государственной и муниципальной собственности (за исключением имущества бюджетных и автономных учреждений, а также имущества государственных и муниципальных унитарных предприятий, в том числе казенных)","010","000 11109040000000120",540000,165583.73000000001,374416.27]
["Прочие поступления от использования имущества, находящегося в собственности сельских поселений (за исключением имущества муниципальных бюджетных и автономных учреждений, а также имущества муниципальных унитарных предприятий, в том числе казенных)","010","000 11109045100000120",540000,165583.73000000001,374416.27]
["ДОХОДЫ ОТ ОКАЗАНИЯ ПЛАТНЫХ УСЛУГ (РАБОТ) И КОМПЕНСАЦИИ ЗАТРАТ ГОСУДАРСТВА","010","000 11300000000000000",50000,20000,30000]
["Доходы от компенсации затрат государства","010","000 11302000000000130",50000,20000,30000]
["Прочие доходы от компенсации затрат государства","010","000 11302990000000130",50000,20000,30000]
["Прочие доходы от компенсации затрат бюджетов сельских поселений","010","000 11302995100000130",50000,20000,30000]
["ДОХОДЫ ОТ ПРОДАЖИ МАТЕРИАЛЬНЫХ И НЕМАТЕРИАЛЬНЫХ АКТИВОВ","010","000 11400000000000000",5231500,2862448,2369052]
["Доходы от реализации имущества, находящегося в государственной и муниципальной собственности (за исключением движимого имущества бюджетных и автономных учреждений, а также имущества государственных и муниципальных унитарных предприятий, в том числе казенных)","010","000 11402000000000000",5231500,2862448,2369052]
["Доходы от реализации имущества, находящегося в собственности городских поселений (за исключением имущества муниципальных бюджетных и автономных учреждений, а также имущества муниципальных унитарных предприятий, в том числе казенных), в части реализации материальных запасов по указанному имуществу","010","000 11402050130000440",5231500,2862448,2369052]
["Доходы от реализации иного имущества, находящегося в собственности сельских поселений (за исключением имущества муниципальных бюджетных и автономных учреждений, а также имущества муниципальных унитарных предприятий, в том числе казенных), в части реализации основных средств по указанному имуществу","010","000 11402053100000410",5231500,2862448,2369052]
["ПРОЧИЕ НЕНАЛОГОВЫЕ ДОХОДЫ","010","000 11700000000000000",50000,-424000,474000]
["Невыясненные поступления","010","000 11701000000000180","-",-424000,"-"]
["Невыясненные поступления, зачисляемые в бюджеты сельских поселений","010","000 11701050100000180","-",-424000,"-"]
["Прочие неналоговые доходы","010","000 11705000000000180",50000,"-",50000]
["Прочие неналоговые доходы бюджетов сельских поселений","010","000 11705050100000180",50000,"-",50000]
["БЕЗВОЗМЕЗДНЫЕ ПОСТУПЛЕНИЯ","010","000 20000000000000000",12321243,5440214,6881029]
["БЕЗВОЗМЕЗДНЫЕ ПОСТУПЛЕНИЯ ОТ ДРУГИХ БЮДЖЕТОВ БЮДЖЕТНОЙ СИСТЕМЫ РОССИЙСКОЙ ФЕДЕРАЦИИ","010","000 20200000000000000",12321243,6093905,6227338]
["Дотации бюджетам бюджетной системы Российской Федерации","010","000 20210000000000151",8250600,4290855,3959745]
["Дотации на выравнивание бюджетной обеспеченности","010","000 20215001000000151",8250600,4290855,3959745]
["Дотации бюджетам сельских поселений на выравнивание бюджетной обеспеченности","010","000 20215001100000151",8250600,4290855,3959745]
["Субсидии бюджетам бюджетной системы Российской Федерации (межбюджетные субсидии)","010","000 20220000000000151",3349300,1685200,1664100]
["Субсидии бюджетам на софинансирование капитальных вложений в объекты государственной (муниципальной) собственности","010","000 20220077000000151",833200,"-",833200]
["Субсидии бюджетам сельских поселений на софинансирование капитальных вложений в объекты муниципальной собственности","010","000 20220077100000151",833200,"-",833200]
["Субсидии бюджетам на осуществление дорожной деятельности в отношении автомобильных дорог общего пользования, а также капитального ремонта и ремонта дворовых территорий многоквартирных домов, проездов к дворовым территориям многоквартирных домов населенных пунктов","010","000 20220216000000151",363400,"-",363400]
["Субсидии бюджетам сельских поселений на осуществление дорожной деятельности в отношении автомобильных дорог общего пользования, а также капитального ремонта и ремонта дворовых территорий многоквартирных домов, проездов к дворовым территориям многоквартирных домов населенных пунктов","010","000 20220216100000151",363400,"-",{"$f":"IF(OR(D85=\"-\",IF(E85=\"-\",0,E85)>=IF(D85=\"-\",0,D85)),\"-\",IF(D85=\"-\",0,D85)-IF(E85=\"-\",0,E85))","v":363400}]
["Прочие субсидии","010","000 20229999000000151",2152700,1685200,467500]
["Прочие субсидии бюджетам сельских поселений","010","000 20229999100000151",2152700,1685200,467500]
["Субвенции бюджетам бюджетной системы Российской Федерации","010","000 20230000000000151",234700,117850,116850]
["Субвенции местным бюджетам на выполнение передаваемых полномочий субъектов Российской Федерации","010","000 20230024000000151",1000,1000,"-"]
["Субвенции бюджетам сельских поселений на выполнение передаваемых полномочий субъектов Российской Федерации","010","000 20230024100000151",1000,1000,"-"]
["Субвенции бюджетам на осуществление первичного воинского учета на территориях, где отсутствуют военные комиссариаты","010","000 20235118000000151",233700,116850,116850]
["Субвенции бюджетам сельских поселений на осуществление первичного воинского учета на территориях, где отсутствуют военные комиссариаты","010","000 20235118100000151",233700,116850,116850]
["Иные межбюджетные трансферты","010","000 20240000000000151",486643,"-",486643]
["Прочие межбюджетные трансферты, передаваемые бюджетам","010","000 20249999000000151",486643,"-",486643]
["Прочие межбюджетные трансферты, передаваемые бюджетам сельских поселений","010","000 20249999100000151",486643,"-",486643]
["ВОЗВРАТ ОСТАТКОВ СУБСИДИЙ, СУБВЕНЦИЙ И ИНЫХ МЕЖБЮДЖЕТНЫХ ТРАНСФЕРТОВ, ИМЕЮЩИХ ЦЕЛЕВОЕ НАЗНАЧЕНИЕ, ПРОШЛЫХ ЛЕТ","010","000 21900000000000000","-",-653691,"-"]
["Возврат остатков субсидий, субвенций и иных межбюджетных трансфертов, имеющих целевое назначение, прошлых лет из бюджетов сельских поселений","010","000 21900000100000151","-",-653691,"-"]
["Возврат прочих остатков субсидий, субвенций и иных межбюджетных трансфертов, имеющих целевое назначение, прошлых лет из бюджетов сельских поселений","010","000 21960010100000151","-",-653691,"-"]

{"sheet":"Расходы","index":1,"n_rows":243,"n_cols":6,"rows_kept":243,"cut":false,"hidden":false,"merged":[[3,5,8,5],[1,0,1,3],[3,0,10,0],[3,1,10,1],[3,2,8,2],[3,3,10,3],[3,4,8,4]]}
[]
["                          2. Расходы бюджета",null,null,null,null,"Форма 0503117  с.2"]
[]
[" Наименование показателя","Код строки","Код расхода по бюджетной классификации","Утвержденные бюджетные назначения","Исполнено","Неисполненные назначения"]
[]
[]
[]
[]
[]
[]
[]
[1,2,3,"4","5","6"]
["Расходы бюджета - всего","200","x",27530640.620000001,5961235.71,{"$f":"IF(OR(D13=\"-\",IF(E13=\"-\",0,E13)>=IF(D13=\"-\",0,D13)),\"-\",IF(D13=\"-\",0,D13)-IF(E13=\"-\",0,E13))","v":21569404.91}]
["в том числе:"]
["ОБЩЕГОСУДАРСТВЕННЫЕ ВОПРОСЫ","200","000 0100 0000000000 000 ",6640464,1978403.22,{"$f":"IF(OR(D15=\"-\",IF(E15=\"-\",0,E15)>=IF(D15=\"-\",0,D15)),\"-\",IF(D15=\"-\",0,D15)-IF(E15=\"-\",0,E15))","v":4662060.78}]
["Расходы на выплаты персоналу в целях обеспечения выполнения функций государственными (муниципальными) органами, казенными учреждениями, органами управления государственными внебюджетными фондами","200","000 0100 0000000000 100 ",5174000,1803137.96,3370862.04]
["Расходы на выплаты персоналу государственных (муниципальных) органов","200","000 0100 0000000000 120 ",5174000,1803137.96,3370862.04]
["Фонд оплаты труда государственных (муниципальных) органов","200","000 0100 0000000000 121 ",3960000,1391307,2568693]
["Взносы по обязательному социальному страхованию на выплаты денежного содержания и иные выплаты работникам государственных (муниципальных) органов","200","000 0100 0000000000 129 ",1214000,411830.96,802169.04]
["Закупка товаров, работ и услуг для обеспечения государственных (муниципальных) нужд","200","000 0100 0000000000 200 ",1160000,135120.46,1024879.54]
["Иные закупки товаров, работ и услуг для обеспечения государственных (муниципальных) нужд","200","000 0100 0000000000 240 ",1160000,135120.46,1024879.54]
["Прочая закупка товаров, работ и услуг для обеспечения государственных (муниципальных) нужд","200","000 0100 0000000000 244 ",1160000,135120.46,1024879.54]
["Межбюджетные трансферты","200","000 0100 0000000000 500 ",186464,36441,150023]
["Иные межбюджетные трансферты","200","000 0100 0000000000 540 ",186464,36441,150023]
["Иные бюджетные ассигнования","200","000 0100 0000000000 800 ",120000,3703.8,116296.2]
["Субсидии юридическим лицам (кроме некоммерческих организаций), индивидуальным предпринимателям, физическим лицам - производителям товаров, работ, услуг","200","000 0100 0000000000 810 ",100000,"-",100000]
["Иные субсидии юридическим лицам (кроме некоммерческих организаций), индивидуальным предпринимателям, физическим лицам - производителям товаров, работ, услуг","200","000 0100 0000000000 814 ",100000,"-",100000]
["Уплата налогов, сборов и иных платежей","200","000 0100 0000000000 850 ",20000,3703.8,16296.2]
["Уплата иных платежей","200","000 0100 0000000000 853 ",20000,3703.8,16296.2]
["Функционирование Правительства Российской Федерации, высших исполнительных органов государственной власти субъектов Российской Федерации, местных администраций","200","000 0104 0000000000 000 ",5900000,1898962.74,4001037.26]
["Расходы на выплаты персоналу в целях обеспечения выполнения функций государственными (муниципальными) органами, казенными учреждениями, органами управления государственными внебюджетными фондами","200","000 0104 6720100150 100 ",1051600,350940.68,700659.32000000007]
["Расходы на выплаты персоналу государственных (муниципальных) органов","200","000 0104 6720100150 120 ",1051600,350940.68,700659.32000000007]
["Фонд оплаты труда государственных (муниципальных) органов","200","000 0104 6720100150 121 ",800000,277080,522920]
["Взносы по обязательному социальному страхованию на выплаты денежного содержания и иные выплаты работникам государственных (муниципальных) органов","200","000 0104 6720100150 129 ",251600,73860.679999999993,177739.32]
["Расходы на выплаты персоналу в целях обеспечения выполнения функций государственными (муниципальными) органами, казенными учреждениями, органами управления государственными внебюджетными фондами","200","000 0104 6730100150 100 ",4122400,1452197.28,2670202.7199999997]
["Расходы на выплаты персоналу государственных (муниципальных) органов","200","000 0104 6730100150 120 ",4122400,1452197.28,2670202.7199999997]
["Фонд оплаты труда государственных (муниципальных) органов","200","000 0104 6730100150 121 ",3160000,1114227,2045773]
["Взносы по обязательному социальному страхованию на выплаты денежного содержания и иные выплаты работникам государственных (муниципальных) органов","200","000 0104 6730100150 129 ",962400,337970.28,624429.72]
["Закупка товаров, работ и услуг для обеспечения государственных (муниципальных) нужд","200","000 0104 6730100150 200 ",706000,92120.98,613879.02]
["Иные закупки товаров, работ и услуг для обеспечения государственных (муниципальных) нужд","200","000 0104 6730100150 240 ",706000,92120.98,613879.02]
["Прочая закупка товаров, работ и услуг для обеспечения государственных (муниципальных) нужд","200","000 0104 6730100150 244 ",706000,92120.98,613879.02]
["Иные бюджетные ассигнования","200","000 0104 6730100150 800 ",20000,3703.8,16296.2]
["Уплата налогов, сборов и иных платежей","200","000 0104 6730100150 850 ",20000,3703.8,16296.2]
["Уплата иных платежей","200","000 0104 6730100150 853 ",20000,3703.8,16296.2]
["Обеспечение деятельности финансовых, налоговых и таможенных органов и органов финансового (финансово-бюджетного) надзора","200","000 0106 0000000000 000 ",186464,36441,150023]
["Межбюджетные трансферты","200","000 0106 6730140010 500 ",145764,36441,109323]
["Иные межбюджетные трансферты","200","000 0106 6730140010 540 ",145764,36441,109323]
["Межбюджетные трансферты","200","000 0106 6730140040 500 ",40700,"-",40700]
["Иные межбюджетные трансферты","200","000 0106 6730140040 540 ",40700,"-",40700]
["Другие общегосударственные вопросы","200","000 0113 0000000000 000 ",554000,42999.48,511000.52]
["Закупка товаров, работ и услуг для обеспечения государственных (муниципальных) нужд","200","000 0113 0110110010 200 ",25000,"-",25000]
["Иные закупки товаров, работ и услуг для обеспечения государственных (муниципальных) нужд","200","000 0113 0110110010 240 ",25000,"-",25000]
["Прочая закупка товаров, работ и услуг для обеспечения государственных (муниципальных) нужд","200","000 0113 0110110010 244 ",25000,"-",25000]
["Закупка товаров, работ и услуг для обеспечения государственных (муниципальных) нужд","200","000 0113 0110110020 200 ",200000,"-",200000]
["Иные закупки товаров, работ и услуг для обеспечения государственных (муниципальных) нужд","200","000 0113 0110110020 240 ",200000,"-",200000]
["Прочая закупка товаров, работ и услуг для обеспечения государственных (муниципальных) нужд","200","000 0113 0110110020 244 ",200000,"-",200000]
["Закупка товаров, работ и услуг для обеспечения государственных (муниципальных) нужд","200","000 0113 0110110030 200 ",3000,"-",3000]
["Иные закупки товаров, работ и услуг для обеспечения государственных (муниципальных) нужд","200","000 0113 0110110030 240 ",3000,"-",3000]
["Прочая закупка товаров, работ и услуг для обеспечения государственных (муниципальных) нужд","200","000 0113 0110110030 244 ",3000,"-",3000]
["Закупка товаров, работ и услуг для обеспечения государственных (муниципальных) нужд","200","000 0113 0120110040 200 ",110000,24999.48,85000.52]
["Иные закупки товаров, работ и услуг для обеспечения государственных (муниципальных) нужд","200","000 0113 0120110040 240 ",110000,24999.48,85000.52]
["Прочая закупка товаров, работ и услуг для обеспечения государственных (муниципальных) нужд","200","000 0113 0120110040 244 ",110000,24999.48,85000.52]
["Закупка товаров, работ и услуг для обеспечения государственных (муниципальных) нужд","200","000 0113 0120110050 200 ",42000,"-",42000]
["Иные закупки товаров, работ и услуг для обеспечения государственных (муниципальных) нужд","200","000 0113 0120110050 240 ",42000,"-",42000]
["Прочая закупка товаров, работ и услуг для обеспечения государственных (муниципальных) нужд","200","000 0113 0120110050 244 ",42000,"-",42000]
["Закупка товаров, работ и услуг для обеспечения государственных (муниципальных) нужд","200","000 0113 0120110060 200 ",20000,"-",20000]
["Иные закупки товаров, работ и услуг для обеспечения государственных (муниципальных) нужд","200","000 0113 0120110060 240 ",20000,"-",20000]
["Прочая закупка товаров, работ и услуг для обеспечения государственных (муниципальных) нужд","200","000 0113 0120110060 244 ",20000,"-",20000]
["Закупка товаров, работ и услуг для обеспечения государственных (муниципальных) нужд","200","000 0113 1110110360 200 ",3000,"-",3000]
["Иные закупки товаров, работ и услуг для обеспечения государственных (муниципальных) нужд","200","000 0113 1110110360 240 ",3000,"-",3000]
["Прочая закупка товаров, работ и услуг для обеспечения государственных (муниципальных) нужд","200","000 0113 1110110360 244 ",3000,"-",3000]
["Закупка товаров, работ и услуг для обеспечения государственных (муниципальных) нужд","200","000 0113 6730171340 200 ",1000,"-",1000]
["Иные закупки товаров, работ и услуг для обеспечения государственных (муниципальных) нужд","200","000 0113 6730171340 240 ",1000,"-",1000]
["Прочая закупка товаров, работ и услуг для обеспечения государственных (муниципальных) нужд","200","000 0113 6730171340 244 ",1000,"-",1000]
["Закупка товаров, работ и услуг для обеспечения государственных (муниципальных) нужд","200","000 0113 6890110250 200 ",50000,18000,32000]
["Иные закупки товаров, работ и услуг для обеспечения государственных (муниципальных) нужд","200","000 0113 6890110250 240 ",50000,18000,32000]
["Прочая закупка товаров, работ и услуг для обеспечения государственных (муниципальных) нужд","200","000 0113 6890110250 244 ",50000,18000,32000]
["Иные бюджетные ассигнования","200","000 0113 6890110330 800 ",100000,"-",100000]
["Субсидии юридическим лицам (кроме некоммерческих организаций), индивидуальным предпринимателям, физическим лицам - производителям товаров, работ, услуг","200","000 0113 6890110330 810 ",100000,"-",{"$f":"IF(OR(D79=\"-\",IF(E79=\"-\",0,E79)>=IF(D79=\"-\",0,D79)),\"-\",IF(D79=\"-\",0,D79)-IF(E79=\"-\",0,E79))","v":100000}]
["Иные субсидии юридическим лицам (кроме некоммерческих организаций), индивидуальным предпринимателям, физическим лицам - производителям товаров, работ, услуг","200","000 0113 6890110330 814 ",100000,"-",100000]
["НАЦИОНАЛЬНАЯ ОБОРОНА","200","000 0200 0000000000 000 ",233700,59975,173725]
["Расходы на выплаты персоналу в целях обеспечения выполнения функций государственными (муниципальными) органами, казенными учреждениями, органами управления государственными внебюджетными фондами","200","000 0200 0000000000 100 ",198700,59975,138725]
["Расходы на выплаты персоналу государственных (муниципальных) органов","200","000 0200 0000000000 120 ",198700,59975,138725]
["Фонд оплаты труда государственных (муниципальных) органов","200","000 0200 0000000000 121 ",153000,46000,107000]
["Взносы по обязательному социальному страхованию на выплаты денежного содержания и иные выплаты работникам государственных (муниципальных) органов","200","000 0200 0000000000 129 ",45700,13975,31725]
["Закупка товаров, работ и услуг для обеспечения государственных (муниципальных) нужд","200","000 0200 0000000000 200 ",35000,"-",35000]
["Иные закупки товаров, работ и услуг для обеспечения государственных (муниципальных) нужд","200","000 0200 0000000000 240 ",35000,"-",35000]
["Прочая закупка товаров, работ и услуг для обеспечения государственных (муниципальных) нужд","200","000 0200 0000000000 244 ",35000,"-",35000]
["Мобилизационная и вневойсковая подготовка","200","000 0203 0000000000 000 ",233700,59975,173725]
["Расходы на выплаты персоналу в целях обеспечения выполнения функций государственными (муниципальными) органами, казенными учреждениями, органами управления государственными внебюджетными фондами","200","000 0203 6890151180 100 ",198700,59975,138725]
["Расходы на выплаты персоналу государственных (муниципальных) органов","200","000 0203 6890151180 120 ",198700,59975,138725]
["Фонд оплаты труда государственных (муниципальных) органов","200","000 0203 6890151180 121 ",153000,46000,107000]
["Взносы по обязательному социальному страхованию на выплаты денежного содержания и иные выплаты работникам государственных (муниципальных) органов","200","000 0203 6890151180 129 ",45700,13975,31725]
["Закупка товаров, работ и услуг для обеспечения государственных (муниципальных) нужд","200","000 0203 6890151180 200 ",35000,"-",35000]
["Иные закупки товаров, работ и услуг для обеспечения государственных (муниципальных) нужд","200","000 0203 6890151180 240 ",35000,"-",35000]
["Прочая закупка товаров, работ и услуг для обеспечения государственных (муниципальных) нужд","200","000 0203 6890151180 244 ",35000,"-",35000]
["НАЦИОНАЛЬНАЯ БЕЗОПАСНОСТЬ И ПРАВООХРАНИТЕЛЬНАЯ ДЕЯТЕЛЬНОСТЬ","200","000 0300 0000000000 000 ",50000,3000,47000]
["Закупка товаров, работ и услуг для обеспечения государственных (муниципальных) нужд","200","000 0300 0000000000 200 ",50000,3000,47000]
["Иные закупки товаров, работ и услуг для обеспечения государственных (муниципальных) нужд","200","000 0300 0000000000 240 ",50000,3000,47000]
["Прочая закупка товаров, работ и услуг для обеспечения государственных (муниципальных) нужд","200","000 0300 0000000000 244 ",50000,3000,47000]
["Защита населения и территории от чрезвычайных ситуаций природного и техногенного характера, гражданская оборона","200","000 0309 0000000000 000 ",25000,"-",25000]
["Закупка товаров, работ и услуг для обеспечения государственных (муниципальных) нужд","200","000 0309 0210110070 200 ",25000,"-",25000]
["Иные закупки товаров, работ и услуг для обеспечения государственных (муниципальных) нужд","200","000 0309 0210110070 240 ",25000,"-",25000]
["Прочая закупка товаров, работ и услуг для обеспечения государственных (муниципальных) нужд","200","000 0309 0210110070 244 ",25000,"-",25000]
["Обеспечение пожарной безопасности","200","000 0310 0000000000 000 ",25000,3000,22000]
["Закупка товаров, работ и услуг для обеспечения государственных (муниципальных) нужд","200","000 0310 0210210080 200 ",25000,3000,22000]
["Иные закупки товаров, работ и услуг для обеспечения государственных (муниципальных) нужд","200","000 0310 0210210080 240 ",25000,3000,22000]
["Прочая закупка товаров, работ и услуг для обеспечения государственных (муниципальных) нужд","200","000 0310 0210210080 244 ",25000,3000,22000]
["НАЦИОНАЛЬНАЯ ЭКОНОМИКА","200","000 0400 0000000000 000 ",3744420,235000,3509420]
["Закупка товаров, работ и услуг для обеспечения государственных (муниципальных) нужд","200","000 0400 0000000000 200 ",3744420,235000,3509420]
["Иные закупки товаров, работ и услуг для обеспечения государственных (муниципальных) нужд","200","000 0400 0000000000 240 ",3744420,235000,3509420]
["Прочая закупка товаров, работ и услуг для обеспечения государственных (муниципальных) нужд","200","000 0400 0000000000 244 ",3744420,235000,3509420]
["Дорожное хозяйство (дорожные фонды)","200","000 0409 0000000000 000 ",3544420,235000,3309420]
["Закупка товаров, работ и услуг для обеспечения государственных (муниципальных) нужд","200","000 0409 0310110090 200 ",822320,5000,817320]
["Иные закупки товаров, работ и услуг для обеспечения государственных (муниципальных) нужд","200","000 0409 0310110090 240 ",822320,5000,817320]
["Прочая закупка товаров, работ и услуг для обеспечения государственных (муниципальных) нужд","200","000 0409 0310110090 244 ",822320,5000,817320]
["Закупка товаров, работ и услуг для обеспечения государственных (муниципальных) нужд","200","000 0409 0310110100 200 ",990000,230000,760000]
["Иные закупки товаров, работ и услуг для обеспечения государственных (муниципальных) нужд","200","000 0409 0310110100 240 ",990000,230000,760000]
["Прочая закупка товаров, работ и услуг для обеспечения государственных (муниципальных) нужд","200","000 0409 0310110100 244 ",990000,230000,760000]
["Закупка товаров, работ и услуг для обеспечения государственных (муниципальных) нужд","200","000 0409 0310170140 200 ",363400,"-",363400]
["Иные закупки товаров, работ и услуг для обеспечения государственных (муниципальных) нужд","200","000 0409 0310170140 240 ",363400,"-",363400]
["Прочая закупка товаров, работ и услуг для обеспечения государственных (муниципальных) нужд","200","000 0409 0310170140 244 ",363400,"-",363400]
["Закупка товаров, работ и услуг для обеспечения государственных (муниципальных) нужд","200","000 0409 03101S0140 200 ",73000,"-",73000]
["Иные закупки товаров, работ и услуг для обеспечения государственных (муниципальных) нужд","200","000 0409 03101S0140 240 ",73000,"-",73000]
["Прочая закупка товаров, работ и услуг для обеспечения государственных (муниципальных) нужд","200","000 0409 03101S0140 244 ",73000,"-",73000]
["Закупка товаров, работ и услуг для обеспечения государственных (муниципальных) нужд","200","000 0409 0330110120 200 ",100000,"-",100000]
["Иные закупки товаров, работ и услуг для обеспечения государственных (муниципальных) нужд","200","000 0409 0330110120 240 ",100000,"-",100000]
["Прочая закупка товаров, работ и услуг для обеспечения государственных (муниципальных) нужд","200","000 0409 0330110120 244 ",100000,"-",100000]
["Закупка товаров, работ и услуг для обеспечения государственных (муниципальных) нужд","200","000 0409 0710174390 200 ",1087000,"-",1087000]
["Иные закупки товаров, работ и услуг для обеспечения государственных (муниципальных) нужд","200","000 0409 0710174390 240 ",1087000,"-",1087000]
["Прочая закупка товаров, работ и услуг для обеспечения государственных (муниципальных) нужд","200","000 0409 0710174390 244 ",1087000,"-",1087000]
["Закупка товаров, работ и услуг для обеспечения государственных (муниципальных) нужд","200","000 0409 07101S4390 200 ",108700,"-",108700]
["Иные закупки товаров, работ и услуг для обеспечения государственных (муниципальных) нужд","200","000 0409 07101S4390 240 ",108700,"-",108700]
["Прочая закупка товаров, работ и услуг для обеспечения государственных (муниципальных) нужд","200","000 0409 07101S4390 244 ",108700,"-",108700]
["Другие вопросы в области национальной экономики","200","000 0412 0000000000 000 ",200000,"-",200000]
["Закупка товаров, работ и услуг для обеспечения государственных (муниципальных) нужд","200","000 0412 6890110190 200 ",200000,"-",200000]
["Иные закупки товаров, работ и услуг для обеспечения государственных (муниципальных) нужд","200","000 0412 6890110190 240 ",200000,"-",200000]
["Прочая закупка товаров, работ и услуг для обеспечения государственных (муниципальных) нужд","200","000 0412 6890110190 244 ",200000,"-",200000]
["ЖИЛИЩНО-КОММУНАЛЬНОЕ ХОЗЯЙСТВО","200","000 0500 0000000000 000 ",9167056.6199999992,795797.49,8371259.129999999]
["Закупка товаров, работ и услуг для обеспечения государственных (муниципальных) нужд","200","000 0500 0000000000 200 ",8172665.6200000001,634606.49,7538059.1299999999]
["Иные закупки товаров, работ и услуг для обеспечения государственных (муниципальных) нужд","200","000 0500 0000000000 240 ",8172665.6200000001,634606.49,7538059.1299999999]
["Прочая закупка товаров, работ и услуг для обеспечения государственных (муниципальных) нужд","200","000 0500 0000000000 244 ",8172665.6200000001,634606.49,7538059.1299999999]
["Капитальные вложения в объекты государственной (муниципальной) собственности","200","000 0500 0000000000 400 ",833200,"-",{"$f":"IF(OR(D143=\"-\",IF(E143=\"-\",0,E143)>=IF(D143=\"-\",0,D143)),\"-\",IF(D143=\"-\",0,D143)-IF(E143=\"-\",0,E143))","v":833200}]
["Бюджетные инвестиции","200","000 0500 0000000000 410 ",833200,"-",833200]
["Бюджетные инвестиции в объекты капитального строительства государственной (муниципальной) собственности","200","000 0500 0000000000 414 ",833200,"-",833200]
["Иные бюджетные ассигнования","200","000 0500 0000000000 800 ",161191,161191,"-"]
["Субсидии юридическим лицам (кроме некоммерческих организаций), индивидуальным предпринимателям, физическим лицам - производителям товаров, работ, услуг","200","000 0500 0000000000 810 ",161191,161191,"-"]
["Иные субсидии юридическим лицам (кроме некоммерческих организаций), индивидуальным предпринимателям, физическим лицам - производителям товаров, работ, услуг","200","000 0500 0000000000 814 ",161191,161191,"-"]
["Жилищное хозяйство","200","000 0501 0000000000 000 ",532000,81447.48,450552.52]
["Закупка товаров, работ и услуг для обеспечения государственных (муниципальных) нужд","200","000 0501 6890110200 200 ",40000,"-",40000]
["Иные закупки товаров, работ и услуг для обеспечения государственных (муниципальных) нужд","200","000 0501 6890110200 240 ",40000,"-",40000]
["Прочая закупка товаров, работ и услуг для обеспечения государственных (муниципальных) нужд","200","000 0501 6890110200 244 ",40000,"-",40000]
["Закупка товаров, работ и услуг для обеспечения государственных (муниципальных) нужд","200","000 0501 6890110210 200 ",492000,81447.48,410552.52]
["Иные закупки товаров, работ и услуг для обеспечения государственных (муниципальных) нужд","200","000 0501 6890110210 240 ",492000,81447.48,410552.52]
["Прочая закупка товаров, работ и услуг для обеспечения государственных (муниципальных) нужд","200","000 0501 6890110210 244 ",492000,81447.48,410552.52]
["Коммунальное хозяйство","200","000 0502 0000000000 000 ",4343701.12,318991.21999999997,4024709.9000000004]
["Закупка товаров, работ и услуг для обеспечения государственных (муниципальных) нужд","200","000 0502 0410110130 200 ",300000,"-",300000]
["Иные закупки товаров, работ и услуг для обеспечения государственных (муниципальных) нужд","200","000 0502 0410110130 240 ",300000,"-",300000]
["Прочая закупка товаров, работ и услуг для обеспечения государственных (муниципальных) нужд","200","000 0502 0410110130 244 ",300000,"-",300000]
["Закупка товаров, работ и услуг для обеспечения государственных (муниципальных) нужд","200","000 0502 0410110140 200 ",200000,"-",200000]
["Иные закупки товаров, работ и услуг для обеспечения государственных (муниципальных) нужд","200","000 0502 0410110140 240 ",200000,"-",200000]
["Прочая закупка товаров, работ и услуг для обеспечения государственных (муниципальных) нужд","200","000 0502 0410110140 244 ",200000,"-",200000]
["Закупка товаров, работ и услуг для обеспечения государственных (муниципальных) нужд","200","000 0502 0410110300 200 ",50000,"-",50000]
["Иные закупки товаров, работ и услуг для обеспечения государственных (муниципальных) нужд","200","000 0502 0410110300 240 ",50000,"-",50000]
["Прочая закупка товаров, работ и услуг для обеспечения государственных (муниципальных) нужд","200","000 0502 0410110300 244 ",50000,"-",50000]
["Закупка товаров, работ и услуг для обеспечения государственных (муниципальных) нужд","200","000 0502 0410110310 200 ",50000,"-",50000]
["Иные закупки товаров, работ и услуг для обеспечения государственных (муниципальных) нужд","200","000 0502 0410110310 240 ",50000,"-",50000]
["Прочая закупка товаров, работ и услуг для обеспечения государственных (муниципальных) нужд","200","000 0502 0410110310 244 ",50000,"-",50000]
["Закупка товаров, работ и услуг для обеспечения государственных (муниципальных) нужд","200","000 0502 0410170260 200 ",2383997.62,"-",2383997.62]
["Иные закупки товаров, работ и услуг для обеспечения государственных (муниципальных) нужд","200","000 0502 0410170260 240 ",2383997.62,"-",2383997.62]
["Прочая закупка товаров, работ и услуг для обеспечения государственных (муниципальных) нужд","200","000 0502 0410170260 244 ",2383997.62,"-",2383997.62]
["Закупка товаров, работ и услуг для обеспечения государственных (муниципальных) нужд","200","000 0502 0420110150 200 ",300000,92487.72,207512.28]
["Иные закупки товаров, работ и услуг для обеспечения государственных (муниципальных) нужд","200","000 0502 0420110150 240 ",300000,92487.72,207512.28]
["Прочая закупка товаров, работ и услуг для обеспечения государственных (муниципальных) нужд","200","000 0502 0420110150 244 ",300000,92487.72,207512.28]
["Закупка товаров, работ и услуг для обеспечения государственных (муниципальных) нужд","200","000 0502 0420310340 200 ",65312.5,65312.5,"-"]
["Иные закупки товаров, работ и услуг для обеспечения государственных (муниципальных) нужд","200","000 0502 0420310340 240 ",65312.5,65312.5,"-"]
["Прочая закупка товаров, работ и услуг для обеспечения государственных (муниципальных) нужд","200","000 0502 0420310340 244 ",65312.5,65312.5,"-"]
["Иные бюджетные ассигнования","200","000 0502 04203S0180 800 ",161191,161191,"-"]
["Субсидии юридическим лицам (кроме некоммерческих организаций), индивидуальным предпринимателям, физическим лицам - производителям товаров, работ, услуг","200","000 0502 04203S0180 810 ",161191,161191,"-"]
["Иные субсидии юридическим лицам (кроме некоммерческих организаций), индивидуальным предпринимателям, физическим лицам - производителям товаров, работ, услуг","200","000 0502 04203S0180 814 ",161191,161191,"-"]
["Капитальные вложения в объекты государственной (муниципальной) собственности","200","000 0502 0810170200 400 ",833200,"-",833200]
["Бюджетные инвестиции","200","000 0502 0810170200 410 ",833200,"-",833200]
["Бюджетные инвестиции в объекты капитального строительства государственной (муниципальной) собственности","200","000 0502 0810170200 414 ",833200,"-",833200]
["Благоустройство","200","000 0503 0000000000 000 ",4291355.5,395358.79,3895996.71]
["Закупка товаров, работ и услуг для обеспечения государственных (муниципальных) нужд","200","000 0503 0510110160 200 ",50000,"-",50000]
["Иные закупки товаров, работ и услуг для обеспечения государственных (муниципальных) нужд","200","000 0503 0510110160 240 ",50000,"-",50000]
["Прочая закупка товаров, работ и услуг для обеспечения государственных (муниципальных) нужд","200","000 0503 0510110160 244 ",50000,"-",50000]
["Закупка товаров, работ и услуг для обеспечения государственных (муниципальных) нужд","200","000 0503 0520110170 200 ",50000,"-",50000]
["Иные закупки товаров, работ и услуг для обеспечения государственных (муниципальных) нужд","200","000 0503 0520110170 240 ",50000,"-",50000]
["Прочая закупка товаров, работ и услуг для обеспечения государственных (муниципальных) нужд","200","000 0503 0520110170 244 ",50000,"-",50000]
["Закупка товаров, работ и услуг для обеспечения государственных (муниципальных) нужд","200","000 0503 0530110180 200 ",1775912.5,185000,1590912.5]
["Иные закупки товаров, работ и услуг для обеспечения государственных (муниципальных) нужд","200","000 0503 0530110180 240 ",1775912.5,185000,1590912.5]
["Прочая закупка товаров, работ и услуг для обеспечения государственных (муниципальных) нужд","200","000 0503 0530110180 244 ",1775912.5,185000,1590912.5]
["Закупка товаров, работ и услуг для обеспечения государственных (муниципальных) нужд","200","000 0503 1010170880 200 ",130700,"-",130700]
["Иные закупки товаров, работ и услуг для обеспечения государственных (муниципальных) нужд","200","000 0503 1010170880 240 ",130700,"-",130700]
["Прочая закупка товаров, работ и услуг для обеспечения государственных (муниципальных) нужд","200","000 0503 1010170880 244 ",130700,"-",130700]
["Закупка товаров, работ и услуг для обеспечения государственных (муниципальных) нужд","200","000 0503 10101S0880 200 ",13100,"-",13100]
["Иные закупки товаров, работ и услуг для обеспечения государственных (муниципальных) нужд","200","000 0503 10101S0880 240 ",13100,"-",13100]
["Прочая закупка товаров, работ и услуг для обеспечения государственных (муниципальных) нужд","200","000 0503 10101S0880 244 ",13100,"-",13100]
["Закупка товаров, работ и услуг для обеспечения государственных (муниципальных) нужд","200","000 0503 6890110220 200 ",2000000,210358.79,1789641.21]
["Иные закупки товаров, работ и услуг для обеспечения государственных (муниципальных) нужд","200","000 0503 6890110220 240 ",2000000,210358.79,1789641.21]
["Прочая закупка товаров, работ и услуг для обеспечения государственных (муниципальных) нужд","200","000 0503 6890110220 244 ",2000000,210358.79,1789641.21]
["Закупка товаров, работ и услуг для обеспечения государственных (муниципальных) нужд","200","000 0503 6890172030 200 ",271643,"-",271643]
["Иные закупки товаров, работ и услуг для обеспечения государственных (муниципальных) нужд","200","000 0503 6890172030 240 ",271643,"-",271643]
["Прочая закупка товаров, работ и услуг для обеспечения государственных (муниципальных) нужд","200","000 0503 6890172030 244 ",271643,"-",271643]
["КУЛЬТУРА, КИНЕМАТОГРАФИЯ","200","000 0800 0000000000 000 ",7300000,2757500,4542500]
["Закупка товаров, работ и услуг для обеспечения государственных (муниципальных) нужд","200","000 0800 0000000000 200 ",150000,"-",{"$f":"IF(OR(D207=\"-\",IF(E207=\"-\",0,E207)>=IF(D207=\"-\",0,D207)),\"-\",IF(D207=\"-\",0,D207)-IF(E207=\"-\",0,E207))","v":150000}]
["Иные закупки товаров, работ и услуг для обеспечения государственных (муниципальных) нужд","200","000 0800 0000000000 240 ",150000,"-",150000]
["Прочая закупка товаров, работ и услуг для обеспечения государственных (муниципальных) нужд","200","000 0800 0000000000 244 ",150000,"-",150000]
["Предоставление субсидий бюджетным, автономным учреждениям и иным некоммерческим организациям","200","000 0800 0000000000 600 ",7150000,2757500,4392500]
["Субсидии бюджетным учреждениям","200","000 0800 0000000000 610 ",7150000,2757500,4392500]
["Субсидии бюджетным учреждениям на финансовое обеспечение государственного (муниципального) задания на оказание государственных (муниципальных) услуг (выполнение работ)","200","000 0800 0000000000 611 ",6000000,2290000,3710000]
["Субсидии бюджетным учреждениям на иные цели","200","000 0800 0000000000 612 ",1150000,467500,682500]
["Культура","200","000 0801 0000000000 000 ",7150000,2757500,4392500]
["Предоставление субсидий бюджетным, автономным учреждениям и иным некоммерческим организациям","200","000 0801 0610100170 600 ",4700000,2290000,2410000]
["Субсидии бюджетным учреждениям","200","000 0801 0610100170 610 ",4700000,2290000,2410000]
["Субсидии бюджетным учреждениям на финансовое обеспечение государственного (муниципального) задания на оказание государственных (муниципальных) услуг (выполнение работ)","200","000 0801 0610100170 611 ",4700000,2290000,2410000]
["Предоставление субсидий бюджетным, автономным учреждениям и иным некоммерческим организациям","200","000 0801 0620100170 600 ",800000,"-",800000]
["Субсидии бюджетным учреждениям","200","000 0801 0620100170 610 ",800000,"-",800000]
["Субсидии бюджетным учреждениям на финансовое обеспечение государственного (муниципального) задания на оказание государственных (муниципальных) услуг (выполнение работ)","200","000 0801 0620100170 611 ",800000,"-",800000]
["Предоставление субсидий бюджетным, автономным учреждениям и иным некоммерческим организациям","200","000 0801 0630100170 600 ",500000,"-",500000]
["Субсидии бюджетным учреждениям","200","000 0801 0630100170 610 ",500000,"-",500000]
["Субсидии бюджетным учреждениям на финансовое обеспечение государственного (муниципального) задания на оказание государственных (муниципальных) услуг (выполнение работ)","200","000 0801 0630100170 611 ",500000,"-",500000]
["Предоставление субсидий бюджетным, автономным учреждениям и иным некоммерческим организациям","200","000 0801 6890160140 600 ",215000,"-",215000]
["Субсидии бюджетным учреждениям","200","000 0801 6890160140 610 ",215000,"-",215000]
["Субсидии бюджетным учреждениям на иные цели","200","000 0801 6890160140 612 ",215000,"-",215000]
["Предоставление субсидий бюджетным, автономным учреждениям и иным некоммерческим организациям","200","000 0801 6890170360 600 ",935000,467500,467500]
["Субсидии бюджетным учреждениям","200","000 0801 6890170360 610 ",935000,467500,467500]
["Субсидии бюджетным учреждениям на иные цели","200","000 0801 6890170360 612 ",935000,467500,467500]
["Другие вопросы в области культуры, кинематографии","200","000 0804 0000000000 000 ",150000,"-",150000]
["Закупка товаров, работ и услуг для обеспечения государственных (муниципальных) нужд","200","000 0804 6890110230 200 ",150000,"-",150000]
["Иные закупки товаров, работ и услуг для обеспечения государственных (муниципальных) нужд","200","000 0804 6890110230 240 ",150000,"-",150000]
["Прочая закупка товаров, работ и услуг для обеспечения государственных (муниципальных) нужд","200","000 0804 6890110230 244 ",150000,"-",150000]
["СОЦИАЛЬНАЯ ПОЛИТИКА","200","000 1000 0000000000 000 ",395000,131560,263440]
["Социальное обеспечение и иные выплаты населению","200","000 1000 0000000000 300 ",395000,131560,263440]
["Социальные выплаты гражданам, кроме публичных нормативных социальных выплат","200","000 1000 0000000000 320 ",395000,131560,263440]
["Пособия, компенсации и иные социальные выплаты гражданам, кроме публичных нормативных обязательств","200","000 1000 0000000000 321 ",395000,131560,263440]
["Пенсионное обеспечение","200","000 1001 0000000000 000 ",395000,131560,263440]
["Социальное обеспечение и иные выплаты населению","200","000 1001 6890103010 300 ",395000,131560,263440]
["Социальные выплаты гражданам, кроме публичных нормативных социальных выплат","200","000 1001 6890103010 320 ",395000,131560,263440]
["Пособия, компенсации и иные социальные выплаты гражданам, кроме публичных нормативных обязательств","200","000 1001 6890103010 321 ",395000,131560,263440]
[]
["Результат исполнения бюджета (дефицит / профицит)","450","x",-2383997.62,3828554.97,"x                    "]

{"sheet":"Источники","index":2,"n_rows":22,"n_cols":6,"rows_kept":22,"cut":false,"hidden":false,"merged":[[0,0,0,5],[1,0,1,5],[3,0,9,0],[3,1,9,1],[3,2,9,2],[3,3,9,3],[3,4,9,4],[3,5,9,5]]}
["             Форма 0503117  с.3"]
["                    3. Источники финансирования дефицита бюджета"]
[]
[" Наименование показателя","Код строки","Код источника финансирования дефицита бюджета по бюджетной классификации","Утвержденные бюджетные назначения","Исполнено","Неисполненные назначения"]
[]
[]
[]
[]
[]
[]
[1,2,3,"4","5","6"]
["Источники финансирования дефицита бюджета - всего","500","x",2383997.62,-3828554.97,"x"]
["в том числе:"]
["источники внутреннего финансирования бюджета","520","x","-","-","-"]
["источники внешнего финансирования бюджета","620","x","-","-","-"]
["Изменение остатков средств","700","*** 01000000000000000",2383997.62,-3828554.97,6212552.5899999999]
["Изменение остатков средств на счетах по учету средств бюджета","700","*** 01050000000000000",2383997.62,-3828554.97,6212552.5899999999]
["Изменение иных финансовых активов за счет средств, размещенных в депозиты в валюте Российской Федерации и иностранной валюте в кредитных организациях","700","*** 01060000000000000","-","-","-"]
["увеличение остатков средств","710","000 01050000000000500",{"$f":"D20","v":-25146643},-9823790.6799999997,"x                    "]
["Увеличение прочих остатков денежных средств бюджетов сельских поселений","710","000 01050201100000510",-25146643,-9823790.6799999997,"x                    "]
["уменьшение остатков средств","720","000 01050000000000600",27530640.620000001,5995235.71,"x                    "]
["Уменьшение прочих остатков денежных средств бюджетов сельских поселений","720","000 01050201100000610",{"$f":"D21","v":27530640.620000001},5995235.71,"x                    "]

{"sheet":"ExportParams","index":3,"n_rows":4,"n_cols":2,"rows_kept":4,"cut":false,"hidden":true,"merged":[]}
["EXPORT_SRC_KIND","СБС"]
["EXPORT_PARAM_SRC_KIND","СБС"]
["EXPORT_SRC_CODE","003121"]
["EXPORT_VB_CODE","3"]